Workbook

Sheet Lynn (hidden)
A1: 0163 Lynn as of the latest submission to DESE
M2: As of May 14, 2018 | X2: 1. Based on 1/6/22 conversation with Mike Bertino, Lynn is planning to transfer $2 million in funds originally budgeted for health insurance to the schools, which will help address some of their $4 million shortfall
B3: FY16 Net School Spending | C3: School | D3: City or | I3: Was Retired Employee Health Insurance | N3: FY17 Net School Spending | O3: School | P3: City or | X3: 2. They will appropriate the additional shortfall from free cash
B4: 163 LYNN | C4: Committee | D4: Town | F4: Total | I4: Included in Schedule 19 | N4: 163 Lynn | O4: Committee | P4: Town | R4: Total | U4: Was Retired Employee Health Insurance | X4: 3. Not sure how this solves their problem for FY23
A5: 10 | B5: 1. Administration (1000) | C5: 5024573 | D5: 1747283 | E5: <FY16 Budget | F5: 6771856 | I5: of the FY93 End-of-Year Report? | M5: 10 | N5: 1. Administration (1000) | O5: 4391292 | P5: 1792586 | Q5: <FY17 Budget | R5: 6183878 | U5: Included in Schedule 19
A6: 11 | B6: 2. Instruction (2000) | C6: 108225063 | D6: 0 | E6: <FY16 Budget | F6: 108225063 | M6: 11 | N6: 2. Instruction (2000) | O6: 108056058.2 | P6: 0 | Q6: <FY17 Budget | R6: 108056058.2 | U6: of the FY93 End-of-Year Report?
A7: 12 | B7: 3. Attendance-Health (3100, 3200) | C7: 3411067 | D7: 0 | E7: <FY16 Budget | F7: 3411067 | I7: YES------------- | J7: X | M7: 12 | N7: 3. Attendance-Health (3100, 3200) | O7: 3436151 | P7: 0 | Q7: <FY17 Budget | R7: 3436151
A8: 13 | B8: 4. Food Services (3400) | C8: 861044 | F8: 861044 | I8: NO -------------- | J8: 0 | M8: 13 | N8: 4. Food Services (3400) | O8: 1300670 | P8: 0 | R8: 1300670 | U8: YES------------- | V8: X
A9: 14 | B9: 5. Athletics/Student Activities/ Security (3500,3600) | C9: 2635131 | D9: 0 | F9: 2635131 | M9: 14 | N9: 5. Athletics/Student Activities/ Security (3500,3600) | O9: 2514771 | P9: 0 | R9: 2514771 | U9: NO -------------- | V9: 0
A10: 15 | B10: 6. Maintenance (4000) | C10: 2691429 | D10: 16740099 | E10: <FY16 Budget | F10: 19431528 | M10: 15 | N10: 6. Maintenance (4000) | O10: 2166621 | P10: 13957076 | Q10: <FY17 Budget | R10: 16123697
A11: 16 | B11: 7. Employee Benefits (5100) | C11: 626721 | D11: 9089682 | F11: 9716403 | I11: Carryforward | J11: 153365 | M11: 16 | N11: 7. Employee Benefits (5100) | O11: 497855 | P11: 9150267 | R11: 9648122
A12: 17 | B12: 8. Insurance (5200) | C12: 0 | D12: 20501936 | F12: 20501936 | I12: Total Required NSS FY15 | J12: 189363403 | M12: 17 | N12: 8. Insurance (5200) | O12: 0 | P12: 21224080 | R12: 21224080 | U12: Carryforward | V12: 109282
A13: 18 | B13: 9. Retired Employee Insurance (5250) | C13: 0 | D13: 1786369 | F13: 1786369 | I13: Actual NSS FY15 | J13: 180567413.1 | M13: 18 | N13: 9. Retired Employee Insurance (5250) | O13: 0 | P13: 3597684 | R13: 3597684 | U13: Total Required NSS FY16 | V13: 200745846.9
A14: 19 | B14: 10. Rentals (5300) | C14: 20000 | D14: 0 | E14: <FY16 Budget | F14: 20000 | I14: Amt Over/Under | J14: -8795989.895 | M14: 19 | N14: 10. Rentals (5300) | O14: 25597 | P14: 0 | Q14: <FY17 Budget | R14: 25597 | U14: Actual NSS FY16 | V14: 193357722.3
A15: 20 | B15: 11. Short Term Interest RAN's (5400) | C15: 0 | D15: 0 | F15: 0 | I15: New Amount Over/Under | J15: -8949354.895 | M15: 20 | N15: 11. Short Term Interest RAN's (5400) | O15: 0 | P15: 0 | R15: 0 | U15: Amt Over/Under | V15: -7388124.619
A16: 21 | B16: 12. Tuition (9000) | C16: 7929124 | D16: 14458042 | F16: 22387166 | I16: Allowable Carryforward | J16: 153365 | M16: 21 | N16: 12. Tuition (9000) | O16: 9139599 | P16: 16907227 | R16: 26046826 | U16: New Amount Over/Under | V16: -7497406.619
A17: 22 | B17: 13. Total School Spending (1 through 12) | C17: 131424152 | D17: 64323411 | F17: 195747563 | I17: SC Revenues Budgeted for FY16 | J17: 0 | M17: 22 | N17: 13. Total School Spending (1 through 12) | O17: 131896418.2 | P17: 66628920 | R17: 198157534.2 | U17: Allowable Carryforward | V17: 109282
A18: 23 | B18: 14. School Revenues | M18: 23 | N18: 14. School Revenues | U18: SC Revenues Budgeted for FY17 | V18: 0
A19: 24 | B19: 14a) FY16 School Revenues | C19: 153365 | D19: 0 | E19: <FY16 Budget | F19: 153365 | M19: 24 | N19: 14a) FY17 School Revenues | O19: 109282 | P19: 0 | Q19: <FY17 Budget | R19: 109282
A20: 25 | B20: 14b) FY16 Charter Reimbursement | D20: 2236477.334 | F20: 2236477.334 | M20: 25 | N20: 14b) FY17 Charter Reimbursement | O20: 0 | P20: 2189878.296 | R20: 2189878.296
A21: 26 | B21: 14c) Subtotal, School Revenues (14a+14b) | C21: 153365 | D21: 2236477.334 | F21: 2389842.334 | M21: 26 | N21: 14c) Subtotal, School Revenues (14a+14b) | O21: 109282 | P21: 2189878.296 | R21: 2299160.296
A22: 27 | K22: Numbers from latest EOYR | M22: 27
A23: 28 | B23: 15. Net School Spending (13 - 14c) | C23: 131270787 | D23: 62086933.67 | F23: 193357720.7 | K23: 193357720.7 | M23: 28 | N23: 15. Net School Spending (13 - 14c) | O23: 131787136.2 | P23: 64439041.7 | R23: =R17-R21 -> 195858373.9 | S23: =R17-R21 -> 195858373.9
A24: 29 | B24: 16. FY16 Required Net School Spending | F24: 191949857 | K24: 191949857 | M24: 29 | N24: 16. FY17 Required Net School Spending | R24: 197467144
A25: 30 | B25: 17. FY15 Carry-Over Into FY16 | F25: =G25 -> 2233553 | G25: 2233553 | K25: 8795989.895 | M25: 30 | N25: 17. FY16 Carry-Over Into FY17 | R25: =G25 -> 2233553
A26: 31 | B26: 18. Total FY16 Requirement (16 + 17) | F26: =SUM(F24:F25) -> 194183410 | G26: ** In accordance with Section 260 of the Acts of 2014, the city agreed to fund education from FY16 through FY19 in an amount equal to the annual net school spending requirement plus $2,233,553. | K26: 200745846.9 | M26: 31 | N26: 18. Total FY17 Requirement (16 + 17) | R26: =R24+R25-#REF!-367804 ->  | S26: Formula requirement + $2.23M - DOR waiver - $367,804 in unallocated appropriation
A27: 32 | B27: 19. Unexpended Net School Spending (18 - 15) | F27: =F26-F23 -> 825689.3339 | K27: 7388126.229 | M27: 32 | N27: 19. Unexpended Net School Spending (18 - 15) | R27: =R26-R23 -> 
A28: 33 | B28: 20. Percent Unexpended (19 / 16) | F28: =F27/F24 -> 0.00430158869 | K28: 0.0385 | M28: 33 | N28: 20. Percent Unexpended (19 / 16) | R28: =R27/R24 -> 
A29: 34 | B29: 21. FY16 Carry-Over (19 or 5% of 16 or 0 if 17 > 0) | F29: 0 | K29: 7388126.229 | M29: 34 | N29: 21. FY17 Carry-Over (19 or 5% of 16 or 0 if 17 > 0) | R29: 0
A30: 35 | B30: 22. Penalty (19 - 21) | F30: =F27 -> 825689.3339 | G30: Treated as a penalty per Jay | K30: 0 | M30: 35 | N30: 22. Penalty (19 - 21) | R30: =R27 ->  | T30: 2893370 | U30: Unexpended FY17 appropriation available to the school department
T31: 193332808 | U31: Previously reported FY17 NSS
T32: =R23-T31 -> 2525565.864 | U32: Difference from previously reported NSS
B33: FY17 Budgeted Net School Spending | C33: School | D33: City or | N33: FY18 Budgeted Net School Spending | O33: School | P33: City or | T33: =T30-T32 -> 367804.1362 | U33: Make sure this not included in FY18, add $154,943 of this amount to the FY18 requirement as a result of the EOY16 amendment
B34: 163 LYNN | C34: Committee | D34: Town | E34: Total | N34: 163 Lynn | O34: Committee | P34: Town | Q34: Total
A35: 40 | B35: 23. Administration (1000) | C35: 4671393 | D35: 1947529 | E35: 6618922 | M35: 40 | N35: 23. Administration (1000) | O35: 4813754 | P35: 1990053 | Q35: 6803807
A36: 41 | B36: 24. Instruction (2000) | C36: 109293495 | D36: 0 | E36: 109293495 | M36: 41 | N36: 24. Instruction (2000) | O36: 118894897 | P36: 0 | Q36: 118894897
A37: 42 | B37: 25. Attendance-Health (3100, 3200) | C37: 3459443 | D37: 0 | E37: 3459443 | M37: 42 | N37: 25. Attendance-Health (3100, 3200) | O37: 3446969 | P37: 0 | Q37: 3446969
A38: 43 | B38: 26. Food Services (3400) | C38: 1159763 | E38: 1159763 | M38: 43 | N38: 26. Food Services (3400) | O38: 1013635 | Q38: 1013635
A39: 44 | B39: 27. Athletics/Student Activities/ Security (3500,3600) | C39: 3074003 | D39: 0 | E39: 3074003 | M39: 44 | N39: 27. Athletics/Student Activities/ Security (3500,3600) | O39: 3228805 | P39: 0 | Q39: 3228805
A40: 45 | B40: 28. Maintenance (4000) | C40: 720453 | D40: 13957076 | E40: 14677529 | M40: 45 | N40: 28. Maintenance (4000) | O40: 748945 | P40: 15078228 | Q40: 15827173
A41: 46 | B41: 29. Employee Benefits (5100) | C41: 0 | D41: 9362373 | E41: 9362373 | M41: 46 | N41: 29. Employee Benefits (5100) | O41: 158042 | P41: 9201360 | Q41: 9359402
A42: 47 | B42: 30. Insurance (5200) | C42: 600000 | D42: 21116835 | E42: 21716835 | M42: 47 | N42: 30. Insurance (5200) | O42: 600000 | P42: 21419711 | Q42: 22019711
A43: 48 | B43: 31. Retired Employee Insurance (5250) | C43: 0 | D43: 3679921 | E43: 3679921 | M43: 48 | N43: 31. Retired Employee Insurance (5250) | O43: 0 | P43: 5375076 | Q43: 5375076
A44: 49 | B44: 32. Rentals (5300) | C44: 25000 | D44: 0 | E44: 25000 | M44: 49 | N44: 32. Rentals (5300) | O44: 25000 | P44: 0 | Q44: 25000
A45: 50 | B45: 33. Short Term Interest RAN's (5400) | C45: 0 | D45: 0 | E45: 0 | M45: 50 | N45: 33. Short Term Interest RAN's (5400) | O45: 0 | P45: 0 | Q45: 0
A46: 51 | B46: 34. Tuition (9000) | C46: 8473829 | D46: =SUM(D61:D62) -> 16948996 | E46: =SUM(C46:D46) -> 25422825 | F46: updated w/ FY17 Q3 estimate | K46: 16687637 | M46: 51 | N46: 34. Tuition (9000) | O46: 9279167 | P46: 19538606 | Q46: 28817773
A47: 52 | B47: 35. Total School Spending (23 through 34) | C47: 131477379 | D47: =SUM(D35:D46) -> 67012730 | E47: =SUM(E35:E46) -> 198490109 | M47: 52 | N47: 35. Total School Spending (23 through 34) | O47: 142209214 | P47: 72603034 | Q47: 214812248
A48: 53 | B48: 36. Revenues | M48: 53 | N48: 36. Revenues
A49: 54 | B49: 36a) FY17 Budgeted School Revenues | C49: 0 | E49: 0 | M49: 54 | N49: 36a) FY18 Budgeted School Revenues | O49: 0 | Q49: 0
A50: 55 | B50: 36b) Projected FY17 Charter Reimbursement (Local Districts) | D50: =D63 -> 2291321.424 | E50: =D50 -> 2291321.424 | F50: updated w/ FY17 Q3 estimate | M50: 55 | N50: 36b) Projected FY18 Charter Reimbursement (Local Districts) | P50: 1571732.229 | Q50: 1571732 | R50: No changes to charter data as of this date.
A51: 56 | B51: 36c) Subtotal, Net School Spending Revenues (36a+36b) | C51: 0 | D51: =D50 -> 2291321.424 | E51: =E50 -> 2291321.424 | K51: 1988485.458 | M51: 56 | N51: 36c) Subtotal, Net School Spending Revenues (36a+36b) | O51: 0 | P51: 1571732 | Q51: 1571732
A52: 57 | M52: 57
A53: 58 | B53: 37. Net School Spending (35 - 36) | C53: 131477379 | D53: =D47-D51 -> 64721408.58 | E53: =E47-E51 -> 196198787.6 | M53: 58 | N53: 37. Net School Spending (35 - 36) | O53: 142209214 | P53: 71031302 | Q53: 213240516
A54: 59 | B54: 38. FY17 Required Net School Spending | E54: =197467144-#REF! ->  | F54: less waiver granted by DOR | M54: 59 | N54: 38. FY18 Required Net School Spending | Q54: 205141063
A55: 60 | B55: 39. Carry-Over Into FY17 (21) | E55: =F29+G25 -> 2233553 | F55: 2nd year of $2.3M | M55: 60 | N55: 39. Carry-Over Into FY17 (21) | Q55: =G25 -> 2233553 | R55: per agreement with ESE
A56: 61 | B56: 40. Total FY17 Requirement (38 + 39) | E56: =SUM(E54:E55) ->  | M56: 61 | N56: 40. Total FY18 Requirement (38 + 39) | Q56: =Q55+Q54 -> 207374616
A57: 62 | B57: 41. Deficiency (40 - 37) | E57: =E56-E53 ->  | F57: =E57/E56 ->  | M57: 62 | N57: 41. Deficiency (40 - 37) | Q57: =IF(Q53>Q56, 0, Q56-Q53) -> 0
C59: Charter foundation tuition FY17 Q3 | D59: 16268182
C60: Choice Tuition Q2 | D60: 601257
D61: =SUM(D59:D60) -> 16869439
C62: Other Muni Tuition | D62: 79557
C63: Charter reimbursement (no facilities aid) Q3 | D63: 2291321.424

Sheet ComplySum
B1: Massachusetts Department of Elementary and Secondary Education | O1: Data as of August 2024
B2: Office of School Finance
B3: Net School Spending (NSS) and Foundation Budget FY22 and FY23
B4: 318 Districts Reporting
B6: Lookups | C6: 47 | D6: 44 | J6: 101 | K6: 98
C7: FY22 | J7: FY23
A8: LEA | B8: District Name | C8: Required NSS | D8: Actual NSS | E8: Amt Over or Under Req'd | F8: Actual as % of Req'd | G8: Foundation Budget | H8: Actual NSS as % of Foundation | J8: Required NSS | K8: Budgeted NSS | L8: % Chg 22 to 23 | M8: Amt Over or Under Req'd | N8: Budgeted as % of Req'd | O8: Foundation Budget | P8: Budgeted NSS as % of Foundation
A9: 0001 | B9: Abington | C9: 26629510 | D9: 31762847.32 | E9: 5133337.32 | F9: 1.192768749 | G9: 26529795.66 | H9: 1.197251864 | J9: 29563171 | K9: 33011376.78 | L9: 0.03930785699 | M9: 3448205.78 | N9: 1.116638563 | O9: 29563170.92 | P9: 1.116638566
A10: 0003 | B10: Acushnet | C10: 14279819 | D10: 16001958.2 | E10: 1722139.205 | F10: 1.120599512 | G10: 13489100.06 | H10: 1.18628805 | J10: 14824675 | K10: 16516397.16 | L10: 0.03214850008 | M10: 1691722.159 | N10: 1.114115295 | O10: 14410940.64 | P10: 1.146101255
A11: 0005 | B11: Agawam | C11: 43370784 | D11: 66813738.51 | E11: 23442954.51 | F11: 1.540524112 | G11: 42850725.39 | H11: 1.559220711 | J11: 46476255 | K11: 67689530.46 | L11: 0.01310796198 | M11: 21213275.46 | N11: 1.456432547 | O11: 46476254.92 | P11: 1.45643255
A12: 0007 | B12: Amesbury | C12: 25761653 | D12: 35498673.62 | E12: 9737020.615 | F12: 1.377965677 | G12: 22473928.55 | H12: 1.5795491 | J12: 26799945 | K12: 36872680.82 | L12: 0.0387058745 | M12: 10072735.82 | N12: 1.375849123 | O12: 23505262.73 | P12: 1.568698944
A13: 0008 | B13: Amherst | C13: 16043246 | D13: 27263835.5 | E13: 11220589.5 | F13: 1.699396463 | G13: 12765297.7 | H13: 2.135777492 | J13: 16679304 | K13: 27992465.8 | L13: 0.02672515758 | M13: 11313161.8 | N13: 1.678275412 | O13: 13429756.49 | P13: 2.084361382
A14: 0009 | B14: Andover | C14: 65247254 | D14: 109284940.6 | E14: 44037686.64 | F14: 1.674935479 | G14: 64739542.48 | H14: 1.688070945 | J14: 67737065 | K14: 116169144.7 | L14: 0.06299316268 | M14: 48432079.69 | N14: 1.715001155 | O14: 67357496.13 | P14: 1.724665425
A15: 0010 | B15: Arlington | C15: 65961393 | D15: 96979638.4 | E15: 31018245.4 | F15: 1.470248489 | G15: 64412505.94 | H15: 1.505602631 | J15: 69496900 | K15: 101629156.4 | L15: 0.04794323874 | M15: 32132256.36 | N15: 1.462355247 | O15: 69496899.57 | P15: 1.462355256
A16: 0014 | B16: Ashland | C16: 30857120 | D16: 39872568.53 | E16: 9015448.53 | F16: 1.29216753 | G16: 30147061.93 | H16: 1.322602137 | J16: 33942251 | K16: 42998545.4 | L16: 0.07839918483 | M16: 9056294.4 | N16: 1.266814785 | O16: 33942250.53 | P16: 1.266814802
A17: 0016 | B17: Attleboro | C17: 80741146 | D17: 83777458.42 | E17: 3036312.42 | F17: 1.037605516 | G17: 80741145.67 | H17: 1.03760552 | J17: 89310930 | K17: 91263330.13 | L17: 0.08935424694 | M17: 1952400.128 | N17: 1.021860708 | O17: 89310929.61 | P17: 1.021860712
A18: 0017 | B18: Auburn | C18: 27852870 | D18: 35770785.97 | E18: 7917915.97 | F18: 1.284276485 | G18: 27367440.74 | H18: 1.307056305 | J18: 30252650 | K18: 37574950.07 | L18: 0.05043680342 | M18: 7322300.07 | N18: 1.242038303 | O18: 30252650.17 | P18: 1.242038296
A19: 0018 | B19: Avon | C19: 7155527 | D19: 11831479.38 | E19: 4675952.381 | F19: 1.653474214 | G19: 7016240.13 | H19: 1.686299095 | J19: 8289242 | K19: 12596093.94 | L19: 0.06462543997 | M19: 4306851.942 | N19: 1.519571264 | O19: 8289241.66 | P19: 1.519571326
A20: 0020 | B20: Barnstable | C20: 66987030 | D20: 87126784.8 | E20: 20139754.8 | F20: 1.300651556 | G20: 65238260.34 | H20: 1.335516679 | J20: 75594780 | K20: 94218345.03 | L20: 0.08139357191 | M20: 18623565.03 | N20: 1.246360463 | O20: 75594779.84 | P20: 1.246360466
A21: 0023 | B21: Bedford | C21: 31026443 | D21: 51230140.96 | E21: 20203697.96 | F21: 1.651176738 | G21: 30729462.66 | H21: 1.667134291 | J21: 32246556 | K21: 52125128.25 | L21: 0.01746993614 | M21: 19878572.25 | N21: 1.616455669 | O21: 32246555.76 | P21: 1.616455681
A22: 0024 | B22: Belchertown | C22: 26807294 | D22: 31246329.67 | E22: 4439035.675 | F22: 1.165590592 | G22: 24800115.19 | H22: 1.259926796 | J22: 27179888 | K22: 33204743.44 | L22: 0.06267660178 | M22: 6024855.437 | N22: 1.221665941 | O22: 26384198.33 | P22: 1.258508711
A23: 0025 | B23: Bellingham | C23: 26105176 | D23: 38007489.21 | E23: 11902313.21 | F23: 1.455936907 | G23: 24805882.76 | H23: 1.532196599 | J23: 27269890 | K23: 39367981.26 | L23: 0.03579536764 | M23: 12098091.26 | N23: 1.443642833 | O23: 27015991.39 | P23: 1.457210313
A24: 0026 | B24: Belmont | C24: 50716777 | D24: 71815400.36 | E24: 21098623.36 | F24: 1.416008757 | G24: 50694465.25 | H24: 1.416631974 | J24: 53845537 | K24: 73754976.41 | L24: 0.0270078012 | M24: 19909439.41 | N24: 1.369750968 | O24: 53256083.38 | P24: 1.384911765
A25: 0027 | B25: Berkley | C25: 8274710 | D25: 9744962.4 | E25: 1470252.4 | F25: 1.177680233 | G25: 7950531.78 | H25: 1.225699446 | J25: 8640735 | K25: 10091664.34 | L25: 0.03557755502 | M25: 1450929.336 | N25: 1.167917351 | O25: 8601441.5 | P25: 1.173252685
A26: 0030 | B26: Beverly | C26: 53925726 | D26: 68964401.68 | E26: 15038675.68 | F26: 1.278877575 | G26: 53925726.19 | H26: 1.27887757 | J26: 58610573 | K26: 73080958.6 | L26: 0.05969104088 | M26: 14470385.6 | N26: 1.246890362 | O26: 58610573.33 | P26: 1.246890355
A27: 0031 | B27: Billerica | C27: 62592586 | D27: 83513914 | E27: 20921328 | F27: 1.334246104 | G27: 52245953.96 | H27: 1.598476201 | J27: 65975163 | K27: 85949677 | L27: 0.02916595431 | M27: 19974514 | N27: 1.302758085 | O27: 57705837.69 | P27: 1.489445097
A28: 0035 | B28: Boston | C28: 1012233521 | D28: 1375755502 | E28: 363521981 | F28: 1.359128574 | G28: 978880394.5 | H28: 1.405437794 | J28: 1054449081 | K28: 1452448985 | L28: 0.05574644847 | M28: 397999904.2 | N28: 1.377448197 | O28: 1012695286 | P28: 1.434240887
A29: 0036 | B29: Bourne | C29: 22554090 | D29: 31796880.4 | E29: 9242790.405 | F29: 1.409805512 | G29: 20951766.19 | H29: 1.517622911 | J29: 23199623 | K29: 32619129.95 | L29: 0.02585944069 | M29: 9419506.948 | N29: 1.406019828 | O29: 21855345.04 | P29: 1.492501257
A30: 0038 | B30: Boxford | C30: 7607183 | D30: 14082778.6 | E30: 6475595.6 | F30: 1.851247512 | G30: 7077684.452 | H30: 1.989743778 | J30: 8111895 | K30: 14056908.42 | L30: -0.001837007933 | M30: 5945013.424 | N30: 1.732876033 | O30: 8106140.946 | P30: 1.734106095
A31: 0040 | B31: Braintree | C31: 65492242 | D31: 79520857.51 | E31: 14028615.51 | F31: 1.214202707 | G31: 63352380.46 | H31: 1.255214988 | J31: 68308994 | K31: 85659245.96 | L31: 0.07719218132 | M31: 17350251.96 | N31: 1.253996596 | O31: 68308994.31 | P31: 1.25399659
A32: 0041 | B32: Brewster | C32: 5063460 | D32: 9518534 | E32: 4455074 | F32: 1.879847772 | G32: 4895214.06 | H32: 1.944457154 | J32: 5580575 | K32: 10061470.4 | L32: 0.05703991812 | M32: 4480895.4 | N32: 1.802945109 | O32: 5580574.66 | P32: 1.802945219
A33: 0043 | B33: Brimfield | C33: 3128843 | D33: 4276453.929 | E33: 1147610.929 | F33: 1.36678444 | G33: 2957057.94 | H33: 1.446185369 | J33: 3156449 | K33: 4533032.829 | L33: 0.05999805093 | M33: 1376583.829 | N33: 1.436117875 | O33: 3134102.29 | P33: 1.446357652
A34: 0044 | B34: Brockton | C34: 261944927 | D34: 265007695.1 | E34: 3062768.071 | F34: 1.011692412 | G34: 261944926.6 | H34: 1.011692414 | J34: 276250953 | K34: 286445260.4 | L34: 0.08089412402 | M34: 10194307.42 | N34: 1.036902343 | O34: 276250953.1 | P34: 1.036902342
A35: 0045 | B35: Brookfield | C35: 2862210 | D35: 3545680.404 | E35: 683470.4041 | F35: 1.238791145 | G35: 2739833.11 | H35: 1.294122767 | J35: 2961396 | K35: 3791872.406 | L35: 0.06943434664 | M35: 830476.4064 | N35: 1.280434095 | O35: 2950079.41 | P35: 1.285345877
A36: 0046 | B36: Brookline | C36: 79086353 | D36: 162525681 | E36: 83439328.01 | F36: 2.055040786 | G36: 77422819.85 | H36: 2.099196094 | J36: 83480952 | K36: 169804550.3 | L36: 0.04478596374 | M36: 86323598.26 | N36: 2.034051436 | O36: 82255132.52 | P36: 2.064364193
A37: 0048 | B37: Burlington | C37: 40182108 | D37: 79159210.24 | E37: 38977102.24 | F37: 1.970011385 | G37: 40093789.19 | H37: 1.974350937 | J37: 44168133 | K37: 83831102.25 | L37: 0.05901893147 | M37: 39662969.25 | N37: 1.897999679 | O37: 44168133.06 | P37: 1.897999676
A38: 0049 | B38: Cambridge | C38: 100848387 | D38: 235833391.2 | E38: 134985004.2 | F38: 2.338494429 | G38: 100848386.9 | H38: 2.338494431 | J38: 105936292 | K38: 248545364 | L38: 0.05390234483 | M38: 142609072 | N38: 2.346177682 | O38: 105936291.7 | P38: 2.346177688
A39: 0050 | B39: Canton | C39: 37479187 | D39: 57047112.98 | E39: 19567925.98 | F39: 1.522101133 | G39: 37413396.48 | H39: 1.524777709 | J39: 40961226 | K39: 61355154.42 | L39: 0.07551725616 | M39: 20393928.42 | N39: 1.497883741 | O39: 40961226.36 | P39: 1.497883728
A40: 0051 | B40: Carlisle | C40: 5795093 | D40: 12710891 | E40: 6915798 | F40: 2.193388613 | G40: 5777297.333 | H40: 2.200144855 | J40: 6420143 | K40: 13144367 | L40: 0.0341027234 | M40: 6724224 | N40: 2.047363587 | O40: 6420143.446 | P40: 2.047363445
A41: 0052 | B41: Carver | C41: 19649054 | D41: 24372657.8 | E41: 4723603.799 | F41: 1.240398535 | G41: 17600656.4 | H41: 1.384758457 | J41: 20396537 | K41: 28311369.87 | L41: 0.1616037163 | M41: 7914832.875 | N41: 1.388047877 | O41: 19740695.12 | P41: 1.434162764
A42: 0056 | B42: Chelmsford | C42: 56199122 | D42: 74757505 | E42: 18558383 | F42: 1.330225497 | G42: 54364865.71 | H42: 1.375106956 | J42: 59337599 | K42: 80183855.24 | L42: 0.07258602651 | M42: 20846256.24 | N42: 1.35131614 | O42: 59337599.05 | P42: 1.351316139
A43: 0057 | B43: Chelsea | C43: 114110343 | D43: 117038446.2 | E43: 2928103.218 | F43: 1.025660279 | G43: 114106347.7 | H43: 1.025696192 | J43: 125093688 | K43: 128164566.6 | L43: 0.09506380795 | M43: 3070878.592 | N43: 1.024548629 | O43: 125093687.6 | P43: 1.024548633
A44: 0061 | B44: Chicopee | C44: 103803922 | D44: 105474862.1 | E44: 1670940.099 | F44: 1.016097081 | G44: 103803922 | H44: 1.01609708 | J44: 112893440 | K44: 118019261.5 | L44: 0.1189325987 | M44: 5125821.541 | N44: 1.045404069 | O44: 112893440.5 | P44: 1.045404065
A45: 0063 | B45: Clarksburg | C45: 2541177 | D45: 3121739.85 | E45: 580562.85 | F45: 1.228462185 | G45: 2139256.18 | H45: 1.459264149 | J45: 2578300 | K45: 3090613.714 | L45: -0.009970765501 | M45: 512313.714 | N45: 1.198702135 | O45: 2565630.8 | P45: 1.20462138
A46: 0064 | B46: Clinton | C46: 26864609 | D46: 30928012.07 | E46: 4063403.074 | F46: 1.151254875 | G46: 26864608.99 | H46: 1.151254875 | J46: 29918746 | K46: 33080661.87 | L46: 0.06960194507 | M46: 3161915.872 | N46: 1.105683436 | O46: 29918746 | P46: 1.105683436
A47: 0065 | B47: Cohasset | C47: 15483664 | D47: 26863759.66 | E47: 11380095.66 | F47: 1.734974335 | G47: 15385213.72 | H47: 1.746076469 | J47: 16000701 | K47: 28287067.65 | L47: 0.05298245683 | M47: 12286366.65 | N47: 1.767864273 | O47: 15911489.33 | P47: 1.777776238
A48: 0067 | B48: Concord | C48: 21318091 | D48: 44273389.75 | E48: 22955298.75 | F48: 2.076798985 | G48: 21236752.31 | H48: 2.084753314 | J48: 22343913 | K48: 45640609.86 | L48: 0.03088130621 | M48: 23296696.86 | N48: 2.042641764 | O48: 22336390.43 | P48: 2.043329696
A49: 0068 | B49: Conway | C49: 1392772 | D49: 2336119.08 | E49: 943347.08 | F49: 1.67731623 | G49: 926021.78 | H49: 2.522747446 | J49: 1443910 | K49: 2393439.4 | L49: 0.02453655744 | M49: 949529.4 | N49: 1.657609823 | O49: 1051296.66 | P49: 2.276654622
A50: 0071 | B50: Danvers | C50: 38127292 | D50: 56254881.34 | E50: 18127589.34 | F50: 1.47544917 | G50: 37556776.83 | H50: 1.497862333 | J50: 39586571 | K50: 58614022.53 | L50: 0.04193664854 | M50: 19027451.53 | N50: 1.480654198 | O50: 39586571.12 | P50: 1.480654193
A51: 0072 | B51: Dartmouth | C51: 41739938 | D51: 50222422.26 | E51: 8482484.255 | F51: 1.203222253 | G51: 38413025.86 | H51: 1.307432079 | J51: 43287689 | K51: 53148152.83 | L51: 0.05825546521 | M51: 9860463.828 | N51: 1.227789103 | O51: 42137530.87 | P51: 1.261302021
A52: 0073 | B52: Dedham | C52: 31443810 | D52: 54895725.74 | E52: 23451915.74 | F52: 1.74583569 | G52: 30666508.9 | H52: 1.790087222 | J52: 33049835 | K52: 58703509.13 | L52: 0.06936393219 | M52: 25653674.13 | N52: 1.776211867 | O52: 33049835.11 | P52: 1.776211861
A53: 0074 | B53: Deerfield | C53: 3759310 | D53: 6010116.84 | E53: 2250806.84 | F53: 1.598728714 | G53: 3195342.38 | H53: 1.880899173 | J53: 3871482 | K53: 6422025.416 | L53: 0.06853586826 | M53: 2550543.416 | N53: 1.658802861 | O53: 3310653.24 | P53: 1.93980612
A54: 0077 | B54: Douglas | C54: 16284767 | D54: 17509730.68 | E54: 1224963.68 | F54: 1.075221443 | G54: 12319421.25 | H54: 1.421311142 | J54: 16804982 | K54: 18276012.16 | L54: 0.04376317889 | M54: 1471030.156 | N54: 1.08753536 | O54: 13450769.33 | P54: 1.358733594
A55: 0078 | B55: Dover | C55: 4997331 | D55: 11052126.37 | E55: 6054795.37 | F55: 2.211605829 | G55: 4983017.631 | H55: 2.217958512 | J55: 5377259 | K55: 12293610.4 | L55: 0.1123298801 | M55: 6916351.4 | N55: 2.286222479 | O55: 5377259.147 | P55: 2.286222416
A56: 0079 | B56: Dracut | C56: 46058563 | D56: 46662523.4 | E56: 603960.4 | F56: 1.01311288 | G56: 46058563.06 | H56: 1.013112878 | J56: 50418701 | K56: 50410501.7 | L56: 0.08032095187 | M56: -8199.304 | N56: 0.9998373757 | O56: 50418700.75 | P56: 0.9998373807
A57: 0082 | B57: Duxbury | C57: 30133087 | D57: 44981460.28 | E57: 14848373.28 | F57: 1.492759779 | G57: 29901986.56 | H57: 1.504296719 | J57: 31970863 | K57: 47027574.54 | L57: 0.04548794653 | M57: 15056711.54 | N57: 1.470951051 | O57: 31970862.73 | P57: 1.470951064
A58: 0083 | B58: East Bridgewater | C58: 23955862 | D58: 28002653.43 | E58: 4046791.431 | F58: 1.16892698 | G58: 23394636.07 | H58: 1.19696897 | J58: 25682683 | K58: 30126445.12 | L58: 0.07584251598 | M58: 4443762.121 | N58: 1.173025619 | O58: 25682682.97 | P58: 1.17302562
A59: 0085 | B59: Eastham | C59: 2320434 | D59: 4658399 | E59: 2337965 | F59: 2.007555052 | G59: 2320433.89 | H59: 2.007555147 | J59: 2709776 | K59: 4718002.2 | L59: 0.01279478207 | M59: 2008226.2 | N59: 1.741104136 | O59: 2709776.23 | P59: 1.741103988
A60: 0086 | B60: Easthampton | C60: 21054596 | D60: 22685383.52 | E60: 1630787.525 | F60: 1.07745518 | G60: 19817458.09 | H60: 1.144717119 | J60: 21391869 | K60: 23670855.03 | L60: 0.04344081302 | M60: 2278986.029 | N60: 1.106535153 | O60: 21391869.32 | P60: 1.106535136
A61: 0087 | B61: East Longmeadow | C61: 29366036 | D61: 39778212.94 | E61: 10412176.94 | F61: 1.354565285 | G61: 27993088.18 | H61: 1.421001237 | J61: 31009727 | K61: 43818848.31 | L61: 0.1015791076 | M61: 12809121.31 | N61: 1.413067852 | O61: 31009727.38 | P61: 1.413067834
A62: 0088 | B62: Easton | C62: 40413003 | D62: 50465760.83 | E62: 10052757.83 | F62: 1.248750577 | G62: 37338104.88 | H62: 1.351588705 | J62: 42014540 | K62: 53346459.1 | L62: 0.05708223212 | M62: 11331919.1 | N62: 1.269714225 | O62: 39647570.75 | P62: 1.345516461
A63: 0089 | B63: Edgartown | C63: 5243885 | D63: 11460645.59 | E63: 6216760.59 | F63: 2.185525729 | G63: 5243884.84 | H63: 2.185525796 | J63: 5932989 | K63: 12395371.6 | L63: 0.08155962966 | M63: 6462382.6 | N63: 2.089228819 | O63: 5932989.49 | P63: 2.089228646
A64: 0091 | B64: Erving | C64: 2421205 | D64: 5325938.7 | E64: 2904733.7 | F64: 2.199705808 | G64: 2355746.09 | H64: 2.26082884 | J64: 2504088 | K64: 4865380.848 | L64: -0.08647449359 | M64: 2361292.848 | N64: 1.942975186 | O64: 2504088.01 | P64: 1.942975178
A65: 0093 | B65: Everett | C65: 120819748 | D65: 126013134.2 | E65: 5193386.247 | F65: 1.042984581 | G65: 120819748.3 | H65: 1.042984579 | J65: 131079662 | K65: 132882902.7 | L65: 0.05451628883 | M65: 1803240.67 | N65: 1.01375683 | O65: 131079661.9 | P65: 1.013756831
A66: 0094 | B66: Fairhaven | C66: 20975457 | D66: 23535014.3 | E66: 2559557.302 | F66: 1.122026295 | G66: 20710203.66 | H66: 1.136397048 | J66: 22300571 | K66: 23433877.98 | L66: -0.004297270261 | M66: 1133306.985 | N66: 1.05081964 | O66: 22300570.94 | P66: 1.050819643
A67: 0095 | B67: Fall River | C67: 182699136.8 | D67: 181022709.2 | E67: -1676427.584 | F67: 0.9908241078 | G67: 179465809.7 | H67: 1.008675188 | J67: 206429717.6 | K67: 205393393.7 | L67: 0.1346277741 | M67: -1036323.93 | N67: 0.9949797735 | O67: 204753290.1 | P67: 1.003126219
A68: 0096 | B68: Falmouth | C68: 37392327 | D68: 62674734.79 | E68: 25282407.79 | F68: 1.676138925 | G68: 36995294.28 | H68: 1.694127213 | J68: 41087216 | K68: 65635541.03 | L68: 0.04724082595 | M68: 24548325.03 | N68: 1.597468688 | O68: 41087216.11 | P68: 1.597468684
A69: 0097 | B69: Fitchburg | C69: 80950249 | D69: 81150775.53 | E69: 200526.5274 | F69: 1.002477158 | G69: 80948312.82 | H69: 1.002501136 | J69: 88839003 | K69: 88758966.87 | L69: 0.09375377249 | M69: -80036.12647 | N69: 0.999099088 | O69: 88839002.54 | P69: 0.9990990931
A70: 0098 | B70: Florida | C70: 985195 | D70: 1602443.32 | E70: 617248.3201 | F70: 1.626524008 | G70: 710252.54 | H70: 2.256159929 | J70: 1014928 | K70: 1564465.343 | L70: -0.02370004418 | M70: 549537.3426 | N70: 1.54145451 | O70: 969371.98 | P70: 1.613895775
A71: 0099 | B71: Foxborough | C71: 33613372 | D71: 47544038.71 | E71: 13930666.71 | F71: 1.414438239 | G71: 29685008.98 | H71: 1.601617797 | J71: 35055644 | K71: 49055407.19 | L71: 0.03178881145 | M71: 13999763.19 | N71: 1.399358323 | O71: 32116850.1 | P71: 1.527404059
A72: 0100 | B72: Framingham | C72: 124235874 | D72: 181461730.7 | E72: 57225856.7 | F72: 1.460622644 | G72: 124104569.5 | H72: 1.462168005 | J72: 139318257 | K72: 190189641.7 | L72: 0.04809780539 | M72: 50871384.71 | N72: 1.365145142 | O72: 139318256.6 | P72: 1.365145146
A73: 0101 | B73: Franklin | C73: 71018218 | D73: 80449980.4 | E73: 9431762.397 | F73: 1.132807647 | G73: 59769256.12 | H73: 1.346009397 | J73: 73686081 | K73: 83388586.9 | L73: 0.03652712518 | M73: 9702505.901 | N73: 1.131673523 | O73: 62458712.61 | P73: 1.335099355
A74: 0103 | B74: Gardner | C74: 31404375 | D74: 32239337.37 | E74: 834962.3678 | F74: 1.026587454 | G74: 30713287.02 | H74: 1.049686976 | J74: 34029130 | K74: 34316364.12 | L74: 0.06442523097 | M74: 287234.124 | N74: 1.008440831 | O74: 34029130.22 | P74: 1.008440824
A75: 0105 | B75: Georgetown | C75: 16245424 | D75: 20224749.74 | E75: 3979325.74 | F75: 1.244950562 | G75: 13268519.02 | H75: 1.524265799 | J75: 16647575 | K75: 20690128 | L75: 0.02301033466 | M75: 4042553 | N75: 1.242831343 | O75: 14264533.8 | P75: 1.450459461
A76: 0107 | B76: Gloucester | C76: 39342679 | D76: 55250621.68 | E76: 15907942.68 | F76: 1.404343148 | G76: 39342679.29 | H76: 1.404343138 | J76: 43648880 | K76: 58198129.67 | L76: 0.05334796063 | M76: 14549249.67 | N76: 1.333324696 | O76: 43648880.14 | P76: 1.333324692
A77: 0110 | B77: Grafton | C77: 33731215 | D77: 45733196.72 | E77: 12001981.72 | F77: 1.355812316 | G77: 33113667.03 | H77: 1.381097318 | J77: 36001738 | K77: 47633733.85 | L77: 0.04155705837 | M77: 11631995.85 | N77: 1.323095397 | O77: 36001737.56 | P77: 1.323095414
A78: 0111 | B78: Granby | C78: 9833607 | D78: 10480358.94 | E78: 646751.936 | F78: 1.065769553 | G78: 8293230.86 | H78: 1.26372449 | J78: 10156688 | K78: 10762211.63 | L78: 0.02689341956 | M78: 605523.626 | N78: 1.059618217 | O78: 8631463.39 | P78: 1.246858283
A79: 0114 | B79: Greenfield | C79: 24139103 | D79: 28936710.36 | E79: 4797607.361 | F79: 1.198748369 | G79: 23851070.39 | H79: 1.213224811 | J79: 26326536 | K79: 31414327.96 | L79: 0.08562195093 | M79: 5087791.956 | N79: 1.193257174 | O79: 26326536.47 | P79: 1.193257153
A80: 0117 | B80: Hadley | C80: 6126694 | D80: 9004914.216 | E80: 2878220.216 | F80: 1.469783576 | G80: 5857373.94 | H80: 1.537363724 | J80: 6293720 | K80: 9346603.108 | L80: 0.03794471373 | M80: 3052883.108 | N80: 1.485068149 | O80: 6025430.87 | P80: 1.551192489
A81: 0118 | B81: Halifax | C81: 6915659 | D81: 8954093.61 | E81: 2038434.61 | F81: 1.29475638 | G81: 6881455.874 | H81: 1.30119175 | J81: 7179616 | K81: 9124443.156 | L81: 0.01902476715 | M81: 1944827.156 | N81: 1.270881779 | O81: 7179616.249 | P81: 1.270881735
A82: 0121 | B82: Hancock | C82: 936904 | D82: 1506504 | E82: 569600 | F82: 1.607959834 | G82: 936904.26 | H82: 1.607959387 | J82: 1024022 | K82: 2158389 | L82: 0.4327137532 | M82: 1134367 | N82: 2.107756474 | O82: 1024022.37 | P82: 2.107755712
A83: 0122 | B83: Hanover | C83: 28693777 | D83: 36749661.87 | E83: 8055884.866 | F83: 1.280753728 | G83: 27986422.45 | H83: 1.313124675 | J83: 29748743 | K83: 38912995.83 | L83: 0.05886677185 | M83: 9164252.827 | N83: 1.308055128 | O83: 29637166.85 | P83: 1.312979612
A84: 0125 | B84: Harvard | C84: 9760072 | D84: 15248914.14 | E84: 5488842.144 | F84: 1.562377219 | G84: 9395298.26 | H84: 1.623036728 | J84: 10079963 | K84: 16014831.57 | L84: 0.05022766994 | M84: 5934868.571 | N84: 1.588778805 | O84: 9947885.43 | P84: 1.609872941
A85: 0127 | B85: Hatfield | C85: 4054949 | D85: 6374380.879 | E85: 2319431.879 | F85: 1.572000259 | G85: 3877179.38 | H85: 1.644076854 | J85: 4163732 | K85: 6465145.325 | L85: 0.01423894307 | M85: 2301413.325 | N85: 1.552728496 | O85: 4125023.47 | P85: 1.56729904
A86: 0128 | B86: Haverhill | C86: 109839438 | D86: 125203117.8 | E86: 15363679.84 | F86: 1.139873984 | G86: 109839437.8 | H86: 1.139873987 | J86: 121331843 | K86: 135100365.2 | L86: 0.07904952784 | M86: 13768522.19 | N86: 1.113478225 | O86: 121331843.4 | P86: 1.113478221
A87: 0131 | B87: Hingham | C87: 43741996 | D87: 65578170.69 | E87: 21836174.69 | F87: 1.499203893 | G87: 43233894.31 | H87: 1.516823125 | J87: 45566365 | K87: 67124836.99 | L87: 0.02358507857 | M87: 21558471.99 | N87: 1.473122488 | O87: 45163141.52 | P87: 1.486274753
A88: 0133 | B88: Holbrook | C88: 17262299 | D88: 19873942.8 | E88: 2611643.8 | F88: 1.151291772 | G88: 17262299.15 | H88: 1.151291762 | J88: 18684758 | K88: 21538637.68 | L88: 0.0837626885 | M88: 2853879.68 | N88: 1.152738381 | O88: 18684757.82 | P88: 1.152738391
A89: 0135 | B89: Holland | C89: 2101881 | D89: 3029131.2 | E89: 927250.2 | F89: 1.441152568 | G89: 1813558.83 | H89: 1.670269059 | J89: 2386919 | K89: 3241691.528 | L89: 0.07017204405 | M89: 854772.528 | N89: 1.358107053 | O89: 2386918.74 | P89: 1.358107201
A90: 0136 | B90: Holliston | C90: 29457390 | D90: 39994511.11 | E90: 10537121.11 | F90: 1.357707221 | G90: 28327730.34 | H90: 1.411850178 | J90: 31404798 | K90: 41915253.93 | L90: 0.04802516065 | M90: 10510455.93 | N90: 1.334676756 | O90: 31404798.24 | P90: 1.334676746
A91: 0137 | B91: Holyoke | C91: 94945261.54 | D91: 94944261.97 | E91: -999.57541 | F91: 0.9999894721 | G91: 94346220.06 | H91: 1.006338801 | J91: 101614348.6 | K91: 101476272.7 | L91: 0.06879837313 | M91: -138075.8468 | N91: 0.9986411777 | O91: 101613348.8 | P91: 0.9986510029
A92: 0138 | B92: Hopedale | C92: 12214154 | D92: 15465380.8 | E92: 3251226.799 | F92: 1.266185181 | G92: 10312156.29 | H92: 1.499723274 | J92: 12546415 | K92: 16485302.12 | L92: 0.06594867185 | M92: 3938887.122 | N92: 1.313945228 | O92: 11008174.74 | P92: 1.497550912
A93: 0139 | B93: Hopkinton | C93: 44006243 | D93: 60636409.69 | E93: 16630166.69 | F93: 1.377904714 | G93: 43582814.8 | H93: 1.391291727 | J93: 46722628 | K93: 62389699.55 | L93: 0.02891480344 | M93: 15667071.55 | N93: 1.335320855 | O93: 46722628.01 | P93: 1.335320854
A94: 0141 | B94: Hudson | C94: 31027255 | D94: 47582288.3 | E94: 16555033.3 | F94: 1.533564226 | G94: 30183664.78 | H94: 1.576425151 | J94: 32381884 | K94: 49066346.88 | L94: 0.0311893065 | M94: 16684462.88 | N94: 1.515240647 | O94: 31921911.97 | P94: 1.537074187
A95: 0142 | B95: Hull | C95: 12407416 | D95: 19782817.63 | E95: 7375401.63 | F95: 1.594434944 | G95: 10312532.87 | H95: 1.918327717 | J95: 12728927 | K95: 20187672 | L95: 0.02046494982 | M95: 7458745 | N95: 1.585968087 | O95: 10651125.81 | P95: 1.895355698
A96: 0144 | B96: Ipswich | C96: 18527082 | D96: 31070248.5 | E96: 12543166.5 | F96: 1.677017919 | G96: 18360232.91 | H96: 1.692257863 | J96: 19884295 | K96: 34099025 | L96: 0.09748156665 | M96: 14214730 | N96: 1.714872214 | O96: 19884295.04 | P96: 1.714872211
A97: 0145 | B97: Kingston | C97: 12251103 | D97: 15115684.7 | E97: 2864581.702 | F97: 1.233822351 | G97: 11891965.33 | H97: 1.271083819 | J97: 13087069 | K97: 15287562.09 | L97: 0.01137079742 | M97: 2200493.091 | N97: 1.168142545 | O97: 13087068.68 | P97: 1.168142574
A98: 0149 | B98: Lawrence | C98: 245266148.2 | D98: 234004115.2 | E98: -11262032.96 | F98: 0.9540823997 | G98: 234592260.9 | H98: 0.9974929023 | J98: 264976508 | K98: 255811720 | L98: 0.09319325337 | M98: -9164787.961 | N98: 0.9654128284 | O98: 253714474.6 | P98: 1.008266164
A99: 0150 | B99: Lee | C99: 8177437 | D99: 11702789.85 | E99: 3525352.853 | F99: 1.431107308 | G99: 7363633.63 | H99: 1.589268348 | J99: 8519039 | K99: 13408315.07 | L99: 0.1457366353 | M99: 4889276.07 | N99: 1.573923428 | O99: 7917418.48 | P99: 1.693521077
A100: 0151 | B100: Leicester | C100: 18721234 | D100: 20958758.53 | E100: 2237524.532 | F100: 1.119518005 | G100: 17918102.01 | H100: 1.169697467 | J100: 19402051 | K100: 21018964.72 | L100: 0.002872602548 | M100: 1616913.715 | N100: 1.083337257 | O100: 19402050.66 | P100: 1.083337276
A101: 0152 | B101: Lenox | C101: 6072044 | D101: 13845166.03 | E101: 7773122.033 | F101: 2.280149161 | G101: 5879254.1 | H101: 2.354918804 | J101: 6358019 | K101: 15751410.96 | L101: 0.1376830673 | M101: 9393391.959 | N101: 2.477408602 | O101: 6111653.49 | P101: 2.577274871
A102: 0153 | B102: Leominster | C102: 81408337 | D102: 81685489.23 | E102: 277152.23 | F102: 1.00340447 | G102: 81402160.15 | H102: 1.003480609 | J102: 91159936 | K102: 91195921 | L102: 0.1164274324 | M102: 35985.002 | N102: 1.000394746 | O102: 91159936.34 | P102: 1.000394742
A103: 0154 | B103: Leverett | C103: 1241178 | D103: 2609026.55 | E103: 1367848.55 | F103: 2.102056716 | G103: 1142444.52 | H103: 2.283722758 | J103: 1361700 | K103: 2921966.703 | L103: 0.1199451775 | M103: 1560266.703 | N103: 2.14582265 | O103: 1361700.11 | P103: 2.145822477
A104: 0155 | B104: Lexington | C104: 81157401 | D104: 150016426.6 | E104: 68859025.61 | F104: 1.848462676 | G104: 80618068.69 | H104: 1.860828832 | J104: 84457008 | K104: 157768484.5 | L104: 0.0516747267 | M104: 73311476.46 | N104: 1.868033076 | O104: 84119411.74 | P104: 1.875530049
A105: 0157 | B105: Lincoln | C105: 6436691 | D105: 14155270.56 | E105: 7718579.559 | F105: 2.199153347 | G105: 6357796.133 | H105: 2.226442979 | J105: 7110979 | K105: 15322111.99 | L105: 0.08243158778 | M105: 8211132.987 | N105: 2.154712029 | O105: 7110979.027 | P105: 2.154712021
A106: 0158 | B106: Littleton | C106: 17472772 | D106: 27920660 | E106: 10447888 | F106: 1.597952517 | G106: 16227167.91 | H106: 1.72061201 | J106: 18465846 | K106: 28788621.2 | L106: 0.03108670067 | M106: 10322775.2 | N106: 1.55901989 | O106: 18465845.97 | P106: 1.559019893
A107: 0159 | B107: Longmeadow | C107: 29782664 | D107: 44022343.91 | E107: 14239679.91 | F107: 1.478119751 | G107: 29129978.33 | H107: 1.511238471 | J107: 31528951 | K107: 45810245.93 | L107: 0.04061351262 | M107: 14281294.93 | N107: 1.452958138 | O107: 31528951.4 | P107: 1.452958119
A108: 0160 | B108: Lowell | C108: 232665678 | D108: 241290288.1 | E108: 8624610.109 | F108: 1.037068682 | G108: 232660515.4 | H108: 1.037091694 | J108: 257876445 | K108: 258600065.6 | L108: 0.0717383927 | M108: 723620.552 | N108: 1.002806075 | O108: 257876444.8 | P108: 1.002806076
A109: 0161 | B109: Ludlow | C109: 30544988 | D109: 40811969.35 | E109: 10266981.35 | F109: 1.336126547 | G109: 28842661.47 | H109: 1.414986248 | J109: 31427468 | K109: 41365506.4 | L109: 0.01356310549 | M109: 9938038.395 | N109: 1.316221415 | O109: 30691074.19 | P109: 1.347802496
A110: 0162 | B110: Lunenburg | C110: 18731996 | D110: 23919189.33 | E110: 5187193.332 | F110: 1.27691621 | G110: 18408485.4 | H110: 1.299356727 | J110: 20056630 | K110: 24589380.6 | L110: 0.02801897908 | M110: 4532750.598 | N110: 1.225997618 | O110: 20056630.42 | P110: 1.225997592
A111: 0163 | B111: Lynn | C111: 269973692.2 | D111: 268015172.1 | E111: -1958520.101 | F111: 0.992745515 | G111: 268344427.4 | H111: 0.9987730124 | J111: 301699117.1 | K111: 301886928.5 | L111: 0.126379996 | M111: 187811.4367 | N111: 1.000622512 | O111: 299740597.4 | P111: 1.007160629
A112: 0164 | B112: Lynnfield | C112: 24211035 | D112: 35878817.3 | E112: 11667782.3 | F112: 1.481920013 | G112: 23928671.95 | H112: 1.499406961 | J112: 25488528 | K112: 37292567.35 | L112: 0.03940347421 | M112: 11804039.35 | N112: 1.46311185 | O112: 25488528.22 | P112: 1.463111837
A113: 0165 | B113: Malden | C113: 99196109 | D113: 99262327.37 | E113: 66218.36773 | F113: 1.00066755 | G113: 97816216.36 | H113: 1.01478396 | J113: 105452144 | K113: 103718835.4 | L113: 0.0448962681 | M113: -1733308.57 | N113: 0.9835630789 | O113: 105452144.2 | P113: 0.9835630766
A114: 0167 | B114: Mansfield | C114: 48992878 | D114: 62647055.26 | E114: 13654177.26 | F114: 1.278697187 | G114: 41585192 | H114: 1.506475076 | J114: 50647455 | K114: 65796544.47 | L114: 0.05027353958 | M114: 15149089.47 | N114: 1.299108602 | O114: 43764978.67 | P114: 1.503406296
A115: 0168 | B115: Marblehead | C115: 30979769 | D115: 52502169.58 | E115: 21522400.58 | F115: 1.694724373 | G115: 30235711.09 | H115: 1.736429133 | J115: 31697545 | K115: 55467734.74 | L115: 0.05648462118 | M115: 23770189.74 | N115: 1.749906333 | O115: 30912361.05 | P115: 1.794354519
A116: 0169 | B116: Marion | C116: 4481242 | D116: 7408353 | E116: 2927111 | F116: 1.653191905 | G116: 4374312.45 | H116: 1.693603986 | J116: 4816494 | K116: 7439521.6 | L116: 0.004207223927 | M116: 2623027.6 | N116: 1.544592727 | O116: 4816493.63 | P116: 1.544592845
A117: 0170 | B117: Marlborough | C117: 69331528 | D117: 86178295.58 | E117: 16846767.58 | F117: 1.242988552 | G117: 68784010.92 | H117: 1.252882675 | J117: 77315387 | K117: 89542232.26 | L117: 0.03903461607 | M117: 12226845.26 | N117: 1.158142457 | O117: 77315386.54 | P117: 1.158142464
A118: 0171 | B118: Marshfield | C118: 50481178 | D118: 55271631.94 | E118: 4790453.94 | F118: 1.094895843 | G118: 43275872.18 | H118: 1.27719279 | J118: 52297584 | K118: 61006921.52 | L118: 0.1037655191 | M118: 8709337.52 | N118: 1.166534223 | O118: 47025005.91 | P118: 1.297329375
A119: 0172 | B119: Mashpee | C119: 19726133 | D119: 31642559.48 | E119: 11916426.48 | F119: 1.604093386 | G119: 18231111.67 | H119: 1.735635218 | J119: 20516175 | K119: 37670754.93 | L119: 0.1905090977 | M119: 17154579.93 | N119: 1.836149035 | O119: 19613343.37 | P119: 1.920669731
A120: 0173 | B120: Mattapoisett | C120: 4359828 | D120: 8966434.663 | E120: 4606606.663 | F120: 2.056602844 | G120: 4252682.29 | H120: 2.108418652 | J120: 4913934 | K120: 9181095.234 | L120: 0.02394046007 | M120: 4267161.234 | N120: 1.868379843 | O120: 4913934.44 | P120: 1.868379675
A121: 0174 | B121: Maynard | C121: 16083653 | D121: 26494489.85 | E121: 10410836.85 | F121: 1.647293053 | G121: 14868952.43 | H121: 1.78186661 | J121: 16951711 | K121: 27672122.85 | L121: 0.04444822305 | M121: 10720411.85 | N121: 1.632408838 | O121: 16124411.02 | P121: 1.716163326
A122: 0175 | B122: Medfield | C122: 28161684 | D122: 42301196.17 | E122: 14139512.17 | F122: 1.502083333 | G122: 26424181.49 | H122: 1.600851712 | J122: 29095977 | K122: 44361941.33 | L122: 0.04871600202 | M122: 15265964.33 | N122: 1.52467612 | O122: 28101468.77 | P122: 1.578634259
A123: 0176 | B123: Medford | C123: 61086493 | D123: 86201584.7 | E123: 25115091.7 | F123: 1.411139852 | G123: 59164566.02 | H123: 1.456979921 | J123: 64950374 | K123: 87501458.46 | L123: 0.01507946478 | M123: 22551084.46 | N123: 1.347204844 | O123: 64950374.2 | P123: 1.34720484
A124: 0177 | B124: Medway | C124: 27985641 | D124: 35096750.46 | E124: 7111109.462 | F124: 1.254098502 | G124: 23134189.31 | H124: 1.517094461 | J124: 29130894 | K124: 36591937.75 | L124: 0.0426018724 | M124: 7461043.746 | N124: 1.256121345 | O124: 25231553.77 | P124: 1.450245121
A125: 0178 | B125: Melrose | C125: 44779595 | D125: 49926991.34 | E125: 5147396.342 | F125: 1.114949596 | G125: 44344391.46 | H125: 1.125891904 | J125: 47377571 | K125: 52828540.11 | L125: 0.05811583456 | M125: 5450969.111 | N125: 1.11505379 | O125: 47377571.27 | P125: 1.115053784
A126: 0181 | B126: Methuen | C126: 89540204 | D126: 94221810.64 | E126: 4681606.645 | F126: 1.052284967 | G126: 89379134.69 | H126: 1.05418128 | J126: 99305682 | K126: 100978160.7 | L126: 0.07170685862 | M126: 1672478.7 | N126: 1.016841722 | O126: 99305682 | P126: 1.016841722
A127: 0182 | B127: Middleborough | C127: 37158860 | D127: 43988944.88 | E127: 6830084.876 | F127: 1.183807708 | G127: 35767383 | H127: 1.229861991 | J127: 40901732 | K127: 49482272.71 | L127: 0.1248797362 | M127: 8580540.706 | N127: 1.209784288 | O127: 40901731.94 | P127: 1.209784289
A128: 0184 | B128: Middleton | C128: 7400837 | D128: 12762769.79 | E128: 5361932.788 | F128: 1.724503565 | G128: 6927207.154 | H128: 1.842412029 | J128: 8108478 | K128: 14392741.3 | L128: 0.1277129915 | M128: 6284263.298 | N128: 1.775023784 | O128: 7809075.674 | P128: 1.843078733
A129: 0185 | B129: Milford | C129: 58526188 | D129: 68252483.11 | E129: 9726295.114 | F129: 1.16618706 | G129: 58526188.08 | H129: 1.166187058 | J129: 66524190 | K129: 75528248 | L129: 0.1066007352 | M129: 9004057.996 | N129: 1.135350133 | O129: 66524190.05 | P129: 1.135350133
A130: 0186 | B130: Millbury | C130: 19976867 | D130: 27626692.28 | E130: 7649825.284 | F130: 1.382934185 | G130: 19104092.83 | H130: 1.4461138 | J130: 20915573 | K130: 28915768.86 | L130: 0.04666054712 | M130: 8000195.861 | N130: 1.382499483 | O130: 20670955.99 | P130: 1.398859776
A131: 0187 | B131: Millis | C131: 13958306 | D131: 20655259.97 | E131: 6696953.973 | F131: 1.479782717 | G131: 11844886.36 | H131: 1.743812422 | J131: 14883765 | K131: 21960230.91 | L131: 0.06317862543 | M131: 7076465.906 | N131: 1.475448645 | O131: 12954292.11 | P131: 1.695208871
A132: 0189 | B132: Milton | C132: 48454883 | D132: 66387422.93 | E132: 17932539.93 | F132: 1.370087364 | G132: 48097215.82 | H132: 1.380275798 | J132: 51259127 | K132: 70008086.3 | L132: 0.05453839318 | M132: 18748959.3 | N132: 1.365768213 | O132: 51259127.09 | P132: 1.365768211
A133: 0191 | B133: Monson | C133: 13575013 | D133: 14630590.11 | E133: 1055577.114 | F133: 1.077758829 | G133: 10403183.45 | H133: 1.406357024 | J133: 13883580 | K133: 14611982.98 | L133: -0.001271796286 | M133: 728402.9838 | N133: 1.052465069 | O133: 11078294.98 | P133: 1.318973995
A134: 0196 | B134: Nahant | C134: 2878958 | D134: 4428859.801 | E134: 1549901.801 | F134: 1.538355127 | G134: 2845521.76 | H134: 1.556431535 | J134: 2902964 | K134: 4892190.913 | L134: 0.104616342 | M134: 1989226.913 | N134: 1.685239952 | O134: 2856293.17 | P134: 1.712776183
A135: 0197 | B135: Nantucket | C135: 20233402 | D135: 39798147 | E135: 19564745 | F135: 1.966952814 | G135: 20100924.6 | H135: 1.979916237 | J135: 22613558 | K135: 43636347.2 | L135: 0.09644168107 | M135: 21022789.2 | N135: 1.929654201 | O135: 22613557.84 | P135: 1.929654215
A136: 0198 | B136: Natick | C136: 57825004 | D136: 88182128.53 | E136: 30357124.53 | F136: 1.524982662 | G136: 57529966.22 | H136: 1.532803412 | J136: 61356636 | K136: 93009300.79 | L136: 0.05474093607 | M136: 31652664.79 | N136: 1.515880056 | O136: 61356636.24 | P136: 1.51588005
A137: 0199 | B137: Needham | C137: 62967935 | D137: 112761386.5 | E137: 49793451.54 | F137: 1.790774726 | G137: 62757965.94 | H137: 1.796766113 | J137: 66681600 | K137: 118536622.1 | L137: 0.0512164294 | M137: 51855022.14 | N137: 1.777651138 | O137: 66681599.62 | P137: 1.777651148
A138: 0201 | B138: New Bedford | C138: 207315041.6 | D138: 212848940.1 | E138: 5533898.511 | F138: 1.026693184 | G138: 206188927.6 | H138: 1.032300534 | J138: 233389315 | K138: 234765056.1 | L138: 0.1029655867 | M138: 1375741.092 | N138: 1.005894619 | O138: 233389315.1 | P138: 1.005894618
A139: 0204 | B139: Newburyport | C139: 24141136 | D139: 41076182.26 | E139: 16935046.26 | F139: 1.70150163 | G139: 24047193.3 | H139: 1.708148712 | J139: 25407535 | K139: 42452984.96 | L139: 0.03351827339 | M139: 17045449.96 | N139: 1.670881688 | O139: 25407534.99 | P139: 1.670881688
A140: 0207 | B140: Newton | C140: 141645943 | D140: 260370453.2 | E140: 118724510.2 | F140: 1.838177979 | G140: 140792530 | H140: 1.849320082 | J140: 148653422 | K140: 267330030.2 | L140: 0.02672951928 | M140: 118676608.2 | N140: 1.798344274 | O140: 148413207.2 | P140: 1.801254992
A141: 0208 | B141: Norfolk | C141: 11827898 | D141: 15708134.78 | E141: 3880236.776 | F141: 1.328058018 | G141: 10190816.71 | H141: 1.541400972 | J141: 12603993 | K141: 16599956.75 | L141: 0.05677453017 | M141: 3995963.748 | N141: 1.317039509 | O141: 11453635.65 | P141: 1.449317689
A142: 0209 | B142: North Adams | C142: 18876463 | D142: 22317490.47 | E142: 3441027.474 | F142: 1.182291962 | G142: 17897202.07 | H142: 1.246982092 | J142: 20196371 | K142: 24099686.3 | L142: 0.07985646184 | M142: 3903315.3 | N142: 1.193268152 | O142: 20196370.64 | P142: 1.193268173
A143: 0210 | B143: Northampton | C143: 32947860 | D143: 43691268.42 | E143: 10743408.42 | F143: 1.326073026 | G143: 30678559 | H143: 1.424162993 | J143: 34437564 | K143: 45126213.67 | L143: 0.03284283803 | M143: 10688649.67 | N143: 1.310377635 | O143: 33723796.18 | P143: 1.33811192
A144: 0211 | B144: North Andover | C144: 51562160 | D144: 66762658.98 | E144: 15200498.98 | F144: 1.2947995 | G144: 51229167.58 | H144: 1.303215768 | J144: 54375769 | K144: 68905900.94 | L144: 0.03210240561 | M144: 14530131.94 | N144: 1.267217038 | O144: 54375769.08 | P144: 1.267217036
A145: 0212 | B145: North Attleborough | C145: 49807109 | D145: 56550192.84 | E145: 6743083.839 | F145: 1.135383964 | G145: 45683012.36 | H145: 1.237882309 | J145: 51630821 | K145: 62077318.97 | L145: 0.09773841354 | M145: 10446497.97 | N145: 1.202330658 | O145: 49368540.36 | P145: 1.257426663
A146: 0213 | B146: Northborough | C146: 17491619 | D146: 29871663.83 | E146: 12380044.83 | F146: 1.707770094 | G146: 16551243.65 | H146: 1.804798749 | J146: 18717234 | K146: 31545818.38 | L146: 0.05604490461 | M146: 12828584.38 | N146: 1.685388898 | O146: 18027328.71 | P146: 1.749888677
A147: 0214 | B147: Northbridge | C147: 28564448 | D147: 29515069.06 | E147: 950621.06 | F147: 1.033279868 | G147: 24066339.76 | H147: 1.22640457 | J147: 29416708 | K147: 30938003.46 | L147: 0.04821043763 | M147: 1521295.456 | N147: 1.051715354 | O147: 26403426.61 | P147: 1.171741983
A148: 0215 | B148: North Brookfield | C148: 7423416 | D148: 8338420.489 | E148: 915004.4894 | F148: 1.123259223 | G148: 6863578.77 | H148: 1.214879405 | J148: 7789173 | K148: 8617559.354 | L148: 0.03347622784 | M148: 828386.3535 | N148: 1.106351002 | O148: 7789173.03 | P148: 1.106350998
A149: 0217 | B149: North Reading | C149: 27947592 | D149: 41079691.47 | E149: 13132099.47 | F149: 1.469883039 | G149: 25122867.63 | H149: 1.635151372 | J149: 29166756 | K149: 43305705.3 | L149: 0.05418769576 | M149: 14138949.3 | N149: 1.484762491 | O149: 27056349.75 | P149: 1.600574567
A150: 0218 | B150: Norton | C150: 31847899 | D150: 38154905.08 | E150: 6307006.081 | F150: 1.198035232 | G150: 26330388.29 | H150: 1.449082507 | J150: 32994640 | K150: 39870162.09 | L150: 0.04495508522 | M150: 6875522.091 | N150: 1.208383001 | O150: 27305331.41 | P150: 1.460160343
A151: 0219 | B151: Norwell | C151: 23354038 | D151: 35475030.6 | E151: 12120992.6 | F151: 1.519010571 | G151: 23347458.35 | H151: 1.51943865 | J151: 24690513 | K151: 37512620.38 | L151: 0.05743729458 | M151: 12822107.38 | N151: 1.519313122 | O151: 24690512.98 | P151: 1.519313123
A152: 0220 | B152: Norwood | C152: 43819023 | D152: 64607276.91 | E152: 20788253.91 | F152: 1.474411625 | G152: 43678902.62 | H152: 1.479141486 | J152: 48677499 | K152: 69243122.18 | L152: 0.07175422776 | M152: 20565623.18 | N152: 1.42248726 | O152: 48677498.67 | P152: 1.42248727
A153: 0221 | B153: Oak Bluffs | C153: 5252037 | D153: 12120017.79 | E153: 6867980.788 | F153: 2.307679437 | G153: 5250477.4 | H153: 2.30836491 | J153: 6081567 | K153: 12082643.24 | L153: -0.003083704066 | M153: 6001076.24 | N153: 1.986764799 | O153: 6081567.23 | P153: 1.986764724
A154: 0223 | B154: Orange | C154: 7528322 | D154: 8078895.2 | E154: 550573.2 | F154: 1.073133588 | G154: 6806427.04 | H154: 1.186950973 | J154: 8547481 | K154: 8762692.648 | L154: 0.08463997008 | M154: 215211.648 | N154: 1.025178371 | O154: 8547480.97 | P154: 1.025178375
A155: 0224 | B155: Orleans | C155: 2185512 | D155: 5323024.5 | E155: 3137512.5 | F155: 2.435596098 | G155: 2121258.23 | H155: 2.50937129 | J155: 2314675 | K155: 5661935.2 | L155: 0.06366882211 | M155: 3347260.2 | N155: 2.446103751 | O155: 2265527.71 | P155: 2.499168373
A156: 0226 | B156: Oxford | C156: 20694202 | D156: 21967880.58 | E156: 1273678.582 | F156: 1.061547606 | G156: 18679880.2 | H156: 1.17601828 | J156: 21296673 | K156: 23087900.25 | L156: 0.05098442082 | M156: 1791227.25 | N156: 1.084108314 | O156: 21026624.1 | P156: 1.098031721
A157: 0227 | B157: Palmer | C157: 17746297 | D157: 19454848.77 | E157: 1708551.769 | F157: 1.096276523 | G157: 16709438.48 | H157: 1.164302965 | J157: 18251117 | K157: 23997056.24 | L157: 0.2334743139 | M157: 5745939.238 | N157: 1.314826716 | O157: 18251116.6 | P157: 1.314826745
A158: 0229 | B158: Peabody | C158: 74033831 | D158: 81644692.06 | E158: 7610861.063 | F158: 1.102802475 | G158: 74033830.66 | H158: 1.10280248 | J158: 83523634 | K158: 90447886.76 | L158: 0.1078232335 | M158: 6924252.758 | N158: 1.082901718 | O158: 83523634.24 | P158: 1.082901715
A159: 0230 | B159: Pelham | C159: 886260 | D159: 2001656 | E159: 1115396 | F159: 2.25854264 | G159: 782638.47 | H159: 2.557574253 | J159: 880170 | K159: 2078642 | L159: 0.03846115416 | M159: 1198472 | N159: 2.361636956 | O159: 789892.4 | P159: 2.631550829
A160: 0231 | B160: Pembroke | C160: 35450303 | D160: 40881499.93 | E160: 5431196.928 | F160: 1.153205938 | G160: 31570380.37 | H160: 1.294932131 | J160: 36565363 | K160: 42724151.7 | L160: 0.04507299812 | M160: 6158788.697 | N160: 1.168432314 | O160: 33225728.81 | P160: 1.285875532
A161: 0234 | B161: Petersham | C161: 1025931 | D161: 1690588.68 | E161: 664657.68 | F161: 1.647858072 | G161: 859319.13 | H161: 1.967358367 | J161: 994911 | K161: 2196405.2 | L161: 0.2991954968 | M161: 1201494.2 | N161: 2.207639879 | O161: 934128.69 | P161: 2.351287594
A162: 0236 | B162: Pittsfield | C162: 79110405 | D162: 94094558.18 | E162: 14984153.18 | F162: 1.189408121 | G162: 79110404.66 | H162: 1.189408126 | J162: 84729485 | K162: 101500015.4 | L162: 0.07870229009 | M162: 16770530.4 | N162: 1.197930277 | O162: 84729484.75 | P162: 1.19793028
A163: 0238 | B163: Plainville | C163: 8221412 | D163: 10436252.72 | E163: 2214840.718 | F163: 1.269399067 | G163: 7127762.91 | H163: 1.464169453 | J163: 8772863 | K163: 10793386.26 | L163: 0.03422047658 | M163: 2020523.26 | N163: 1.23031515 | O163: 8036459.79 | P163: 1.343052357
A164: 0239 | B164: Plymouth | C164: 101072080 | D164: 137107824.7 | E164: 36035744.71 | F164: 1.356535106 | G164: 96767564.54 | H164: 1.416877911 | J164: 106147933 | K164: 144719570.7 | L164: 0.05551649628 | M164: 38571637.75 | N164: 1.363376249 | O164: 104649211.5 | P164: 1.382901683
A165: 0240 | B165: Plympton | C165: 2530868 | D165: 4056160.06 | E165: 1525292.06 | F165: 1.602675469 | G165: 2366031.939 | H165: 1.714330223 | J165: 2979879 | K165: 4331848.95 | L165: 0.06796795144 | M165: 1351969.95 | N165: 1.453699613 | O165: 2979879.445 | P165: 1.453699396
A166: 0242 | B166: Provincetown | C166: 1413960 | D166: 6045872.05 | E166: 4631912.05 | F166: 4.275843765 | G166: 1357829.12 | H166: 4.452601554 | J166: 1566002 | K166: 6531062.52 | L166: 0.08025152798 | M166: 4965060.52 | N166: 4.170532681 | O166: 1535068 | P166: 4.25457538
A167: 0243 | B167: Quincy | C167: 138467853 | D167: 164430885.5 | E167: 25963032.46 | F167: 1.187502239 | G167: 138447528 | H167: 1.187676572 | J167: 146803428 | K167: 170829622.7 | L167: 0.03891444868 | M167: 24026194.72 | N167: 1.163662355 | O167: 146803428.4 | P167: 1.163662352
A168: 0244 | B168: Randolph | C168: 44773911 | D168: 59254184.42 | E168: 14480273.42 | F168: 1.323408724 | G168: 44771562.8 | H168: 1.323478135 | J168: 47526056 | K168: 61738012.1 | L168: 0.04191818195 | M168: 14211956.1 | N168: 1.299035041 | O168: 47526055.61 | P168: 1.299035052
A169: 0246 | B169: Reading | C169: 45825918 | D169: 59475511.84 | E169: 13649593.84 | F169: 1.29785751 | G169: 42274011.34 | H169: 1.406904856 | J169: 46812748 | K169: 61895605.09 | L169: 0.04069058295 | M169: 15082857.09 | N169: 1.322195507 | O169: 43201150.09 | P169: 1.432730493
A170: 0248 | B170: Revere | C170: 119408964 | D170: 116309918.5 | E170: -3099045.47 | F170: 0.9740467938 | G170: 119408964.5 | H170: 0.97404679 | J170: 128561723.5 | K170: 134932570.2 | L170: 0.160112327 | M170: 6370846.772 | N170: 1.049554771 | O170: 125462677.8 | P170: 1.075479757
A171: 0249 | B171: Richmond | C171: 1435779 | D171: 3567108.38 | E171: 2131329.38 | F171: 2.484441115 | G171: 1294266.88 | H171: 2.756084108 | J171: 1633317 | K171: 4505556 | L171: 0.2630835736 | M171: 2872239 | N171: 2.758531259 | O171: 1633317.15 | P171: 2.758531005
A172: 0250 | B172: Rochester | C172: 5589432 | D172: 7455875.15 | E172: 1866443.15 | F172: 1.333923581 | G172: 5247585.08 | H172: 1.420820251 | J172: 6070731 | K172: 7597545.4 | L172: 0.01900115642 | M172: 1526814.4 | N172: 1.251504209 | O172: 6070731.01 | P172: 1.251504207
A173: 0251 | B173: Rockland | C173: 29636842 | D173: 36496090.23 | E173: 6859248.229 | F173: 1.23144329 | G173: 29636842.03 | H173: 1.231443289 | J173: 31695075 | K173: 38254683.32 | L173: 0.04818579402 | M173: 6559608.315 | N173: 1.206959861 | O173: 31695075.43 | P173: 1.206959845
A174: 0252 | B174: Rockport | C174: 7293605 | D174: 17227233 | E174: 9933628 | F174: 2.361964077 | G174: 6998375.141 | H174: 2.46160468 | J174: 7873655 | K174: 17554616 | L174: 0.01900380636 | M174: 9680961 | N174: 2.229538378 | O174: 7658338.17 | P174: 2.292222622
A175: 0253 | B175: Rowe | C175: 620093 | D175: 2065147.089 | E175: 1445054.089 | F175: 3.330382844 | G175: 580639.88 | H175: 3.556674559 | J175: 710832 | K175: 2122239.25 | L175: 0.02764556641 | M175: 1411407.25 | N175: 2.985570782 | O175: 687426.26 | P175: 3.087224585
A176: 0258 | B176: Salem | C176: 62876841 | D176: 79465679 | E176: 16588838 | F176: 1.263830653 | G176: 59973101.91 | H176: 1.325021993 | J176: 65935095 | K176: 85060679.86 | L176: 0.07040776517 | M176: 19125584.86 | N176: 1.290066843 | O176: 62736825.24 | P176: 1.355833349
A177: 0261 | B177: Sandwich | C177: 30028284 | D177: 49108927.72 | E177: 19080643.72 | F177: 1.635422381 | G177: 27638904.29 | H177: 1.776804435 | J177: 30968373 | K177: 50723946.59 | L177: 0.03288646169 | M177: 19755573.59 | N177: 1.637927397 | O177: 29279714.52 | P177: 1.732392116
A178: 0262 | B178: Saugus | C178: 32637721 | D178: 45258771.14 | E178: 12621050.14 | F178: 1.386701331 | G178: 31864908.98 | H178: 1.420332667 | J178: 37560632 | K178: 46119620.17 | L178: 0.01902060099 | M178: 8558988.168 | N178: 1.22787125 | O178: 37560632.35 | P178: 1.227871239
A179: 0263 | B179: Savoy | C179: 974901.5 | D179: 935969.96 | E179: -38931.54 | F179: 0.960066181 | G179: 542332.33 | H179: 1.725823648 | J179: 986769.54 | K179: 1024549.752 | L179: 0.09463956728 | M179: 37780.212 | N179: 1.038286763 | O179: 652497.03 | P179: 1.570198338
A180: 0264 | B180: Scituate | C180: 31602363 | D180: 48155625.72 | E180: 16553262.72 | F180: 1.523798259 | G180: 30894315.61 | H180: 1.558721233 | J180: 32882051 | K180: 49879220.85 | L180: 0.03579218638 | M180: 16997169.85 | N180: 1.516913311 | O180: 32814594.94 | P180: 1.520031588
A181: 0265 | B181: Seekonk | C181: 23281396 | D181: 34669413.45 | E181: 11388017.45 | F181: 1.489146675 | G181: 22858887.2 | H181: 1.516671094 | J181: 24525300 | K181: 35607417.63 | L181: 0.02705566917 | M181: 11082117.63 | N181: 1.451864712 | O181: 24525300.48 | P181: 1.451864684
A182: 0266 | B182: Sharon | C182: 39590771 | D182: 60009891.01 | E182: 20419120.01 | F182: 1.515754543 | G182: 38638373.19 | H182: 1.553116399 | J182: 42035594 | K182: 62964467.59 | L182: 0.0492348266 | M182: 20928873.59 | N182: 1.497884569 | O182: 42035594.01 | P182: 1.497884568
A183: 0269 | B183: Sherborn | C183: 4102923 | D183: 7899842.5 | E183: 3796919.5 | F183: 1.925418171 | G183: 4092250.435 | H183: 1.930439651 | J183: 4431919 | K183: 8422424.4 | L183: 0.06615092643 | M183: 3990505.4 | N183: 1.900401248 | O183: 4431918.977 | P183: 1.900401258
A184: 0271 | B184: Shrewsbury | C184: 72725121 | D184: 88360950.84 | E184: 15635829.84 | F184: 1.214999021 | G184: 67854307.58 | H184: 1.302215791 | J184: 75829595 | K184: 92690772.98 | L184: 0.04900153413 | M184: 16861177.98 | N184: 1.222356166 | O184: 70918716.62 | P184: 1.307000146
A185: 0272 | B185: Shutesbury | C185: 1346739 | D185: 2803983.845 | E185: 1457244.845 | F185: 2.082054389 | G185: 1167665.85 | H185: 2.401358099 | J185: 1358393 | K185: 3051366.248 | L185: 0.08822533092 | M185: 1692973.248 | N185: 2.246305928 | O185: 1228431.31 | P185: 2.483953497
A186: 0273 | B186: Somerset | C186: 18494491 | D186: 26040764.91 | E186: 7546273.91 | F186: 1.408028202 | G186: 17923179.72 | H186: 1.452909881 | J186: 20421920 | K186: 27464059.7 | L186: 0.0546564127 | M186: 7042139.704 | N186: 1.344832401 | O186: 20421920.32 | P186: 1.34483238
A187: 0274 | B187: Somerville | C187: 83009999 | D187: 111637722.5 | E187: 28627723.47 | F187: 1.344870784 | G187: 77023976.66 | H187: 1.449389233 | J187: 87057296 | K187: 121267712.2 | L187: 0.08626107295 | M187: 34210416.2 | N187: 1.392964378 | O187: 80143330.55 | P187: 1.513135421
A188: 0275 | B188: Southampton | C188: 6077774 | D188: 7215908.414 | E188: 1138134.414 | F188: 1.18726172 | G188: 5095671.48 | H188: 1.416085877 | J188: 6479711 | K188: 7651935.827 | L188: 0.06042585183 | M188: 1172224.827 | N188: 1.180906961 | O188: 5851647.49 | P188: 1.307654954
A189: 0276 | B189: Southborough | C189: 13107989 | D189: 26299270.75 | E189: 13191281.75 | F189: 2.00635435 | G189: 12226979.46 | H189: 2.150921317 | J189: 13722844 | K189: 27135317.7 | L189: 0.03178973888 | M189: 13412473.7 | N189: 1.977382946 | O189: 13166912.13 | P189: 2.060871785
A190: 0277 | B190: Southbridge | C190: 31977787 | D190: 33333448.28 | E190: 1355661.28 | F190: 1.042393843 | G190: 31977786.81 | H190: 1.042393849 | J190: 34733983 | K190: 34962116.68 | L190: 0.04885988353 | M190: 228133.6805 | N190: 1.006568025 | O190: 34733982.75 | P190: 1.006568033
A191: 0278 | B191: South Hadley | C191: 22670405 | D191: 27849763.78 | E191: 5179358.776 | F191: 1.228463443 | G191: 22281902.76 | H191: 1.249882655 | J191: 24351461 | K191: 29090876.84 | L191: 0.04456458156 | M191: 4739415.845 | N191: 1.194625523 | O191: 24351460.98 | P191: 1.194625524
A192: 0281 | B192: Springfield | C192: 446524568 | D192: 446524574.7 | E192: 6.688178658 | F192: 1.000000015 | G192: 446524568 | H192: 1.000000015 | J192: 483882872 | K192: 484547542.1 | L192: 0.08515313509 | M192: 664670.1192 | N192: 1.001373618 | O192: 483882872.1 | P192: 1.001373618
A193: 0284 | B193: Stoneham | C193: 27997944 | D193: 40966031.99 | E193: 12968087.99 | F193: 1.46318001 | G193: 27721100.21 | H193: 1.477792428 | J193: 29345841 | K193: 43162163 | L193: 0.05360858506 | M193: 13816322 | N193: 1.470810225 | O193: 29345841.39 | P193: 1.470810205
A194: 0285 | B194: Stoughton | C194: 45081027 | D194: 57703816.8 | E194: 12622789.8 | F194: 1.280002268 | G194: 44927626.42 | H194: 1.284372699 | J194: 50610298 | K194: 63379947.35 | L194: 0.09836663967 | M194: 12769649.35 | N194: 1.252313261 | O194: 50610297.86 | P194: 1.252313265
A195: 0287 | B195: Sturbridge | C195: 8941234 | D195: 13327043 | E195: 4385809 | F195: 1.490514956 | G195: 8608625.43 | H195: 1.548103482 | J195: 9620722 | K195: 13800695.32 | L195: 0.03554069121 | M195: 4179973.32 | N195: 1.434476053 | O195: 9620721.53 | P195: 1.434476123
A196: 0288 | B196: Sudbury | C196: 26170934 | D196: 47317190.45 | E196: 21146256.45 | F196: 1.808005417 | G196: 25581450.37 | H196: 1.849668012 | J196: 27102527 | K196: 48212257.52 | L196: 0.01891631917 | M196: 21109730.52 | N196: 1.778884217 | O196: 26839555.45 | P196: 1.796313565
A197: 0289 | B197: Sunderland | C197: 2297140 | D197: 3561817.533 | E197: 1264677.533 | F197: 1.550544387 | G197: 1721299.1 | H197: 2.069261253 | J197: 2462093 | K197: 3665951.826 | L197: 0.02923627941 | M197: 1203858.826 | N197: 1.488957495 | O197: 2091284.38 | P197: 1.752966675
A198: 0290 | B198: Sutton | C198: 16609112 | D198: 20021113.74 | E198: 3412001.736 | F198: 1.20542951 | G198: 13690363.95 | H198: 1.462423776 | J198: 17221194 | K198: 20921229.79 | L198: 0.04495834069 | M198: 3700035.788 | N198: 1.214853615 | O198: 14448148.28 | P198: 1.448021531
A199: 0291 | B199: Swampscott | C199: 23899307 | D199: 33951347.1 | E199: 10052040.1 | F199: 1.420599648 | G199: 23502231.44 | H199: 1.444601003 | J199: 24718648 | K199: 34917019.31 | L199: 0.02844282468 | M199: 10198371.31 | N199: 1.412578039 | O199: 24578055.19 | P199: 1.420658349
A200: 0292 | B200: Swansea | C200: 23940769 | D200: 26523271.69 | E200: 2582502.686 | F200: 1.107870498 | G200: 23940769.11 | H200: 1.107870493 | J200: 25270426 | K200: 28423876.12 | L200: 0.07165799351 | M200: 3153450.117 | N200: 1.124788166 | O200: 25270425.83 | P200: 1.124788174
A201: 0293 | B201: Taunton | C201: 107050855 | D201: 108534307.2 | E201: 1483452.182 | F201: 1.013857453 | G201: 107043467.6 | H201: 1.013927423 | J201: 118729148 | K201: 122206391.3 | L201: 0.1259701607 | M201: 3477243.304 | N201: 1.029287192 | O201: 118729147.7 | P201: 1.029287194
... 126 more rows

Sheet funccodes (hidden)
A1: FuncCode | B1: FuncName | C1: FuncSubttl
A2: 1000 | B2: District Administration
A3: 1110 | B3: School Committee | C3: ADMN
A4: 1210 | B4: Superintendent | C4: ADMN
A5: 1220 | B5: Assistant Superintendents | C5: ADMN
A6: 1230 | B6: Other District-Wide Administration | C6: ADMN
A7: 1400 | B7: Administrative Depts (Finance, Personnel)
A8: 1410 | B8: Business and Finance | C8: ADMN
A9: 1420 | B9: Human Resources and Benefits | C9: ADMN
A10: 1430 | B10: Legal Service for School Committee | C10: ADMN
A11: 1435 | B11: Legal Settlements | C11: ADMN
A12: 1450 | B12: District-wide Information Mgmt & Tech | C12: ADMN
A13: 2000 | B13: Instruction
A14: 2100 | B14: Districtwide Academic Leadership
A15: 2110 | B15: Curriculum Directors (Supervisory) | C15: LDRS
A16: 2120 | B16: Department Heads (Non-Supervisory) | C16: LDRS
A17: 2200 | B17: School Building Leadership
A18: 2210 | B18: School Leadership | C18: LDRS
A19: 2220 | B19: Curriculum/Dept Leaders (School Level) | C19: LDRS
A20: 2250 | B20: Admin. Technology (School Level) | C20: LDRS
A21: 2300 | B21: Instruction - Teaching Services
A22: 2305 | B22: Teachers, Classroom | C22: TCHR
A23: 2310 | B23: Teachers, Specialists | C23: TCHR
A24: 2315 | B24: Instructional Coordinators (Non-Supervisory) | C24: LDRS
A25: 2320 | B25: Medical/ Therapeutic Services | C25: TSER
A26: 2325 | B26: Substitute Teachers | C26: TSER
A27: 2330 | B27: Paraprofessionals | C27: TSER
A28: 2340 | B28: Librarians/Media Center Directors | C28: TSER
A29: 2350 | B29: Professional Development
A30: 2351 | B30: Professional Development Leadership | C30: PDEV
A31: 2353 | B31: Instructional Staff-Professional Days | C31: PDEV
A32: 2355 | B32: Substitutes for Prof. Development | C32: PDEV
A33: 2357 | B33: Prof. Dev. Stipends, Providers, Expenses | C33: PDEV
A34: 2400 | B34: Instructional Materials and Equipment
A35: 2410 | B35: Textbooks, Related Software/Media/Matls | C35: MATL
A36: 2415 | B36: Other Instructional Matls (Libraries) | C36: MATL
A37: 2420 | B37: Instructional Equipment | C37: MATL
A38: 2430 | B38: General Classroom Supplies | C38: MATL
A39: 2440 | B39: Other Instructional Services | C39: MATL
A40: 2450 | B40: Instructional Technology
A41: 2451 | B41: Classroom Instructional Technology | C41: MATL
A42: 2453 | B42: Other Instructional Hardware (Libraries) | C42: MATL
A43: 2455 | B43: Instructional Software | C43: MATL
A44: 2700 | B44: Guidance, Counseling and Testing
A45: 2710 | B45: Guidance incl Adjustment Counselors | C45: GUID
A46: 2720 | B46: Testing and Assessment | C46: GUID
A47: 2800 | B47: Psychological Services | C47: GUID
A48: 3000 | B48: Other School Services
A49: 3100 | B49: Attendance and Parent Liaison Services | C49: SERV
A50: 3132 | B50: Attendance/Health (Sched 19, NSS)
A51: 3200 | B51: Medical/Health Services | C51: SERV
A52: 3300 | B52: Transportation Services | C52: SERV
A53: 3399 | B53: Public Transportation Assessment (NIC Expenditures)
A54: 3400 | B54: Food Services | C54: SERV
A55: 3510 | B55: Athletics | C55: SERV
A56: 3512 | B56: Athletics/Activities/Security (Sched 19, NSS)
A57: 3520 | B57: Other Student Activities | C57: SERV
A58: 3600 | B58: School Security | C58: SERV
A59: 4000 | B59: Operation and Plant Maintenance
A60: 4110 | B60: Custodial Services | C60: OPMN
A61: 4120 | B61: Heating of Buildings | C61: OPMN
A62: 4130 | B62: Utility Services | C62: OPMN
A63: 4200 | B63: Operation and Maintenance
A64: 4210 | B64: Maintenance of Grounds | C64: OPMN
A65: 4220 | B65: Maintenance of Buildings | C65: OPMN
A66: 4225 | B66: Building Security System | C66: OPMN
A67: 4230 | B67: Maintenance of Equipment | C67: OPMN
A68: 4300 | B68: Extraordinary Maintenance | C68: OPMN
A69: 4400 | B69: Networking and Telecommunications | C69: OPMN
A70: 4450 | B70: Technology Maintenance | C70: OPMN
A71: 5000 | B71: Fixed Charges
A72: 5100 | B72: Employer Retirement Contributions | C72: BENE
A73: 5150 | B73: Employee Separation Costs | C73: BENE
A74: 5200 | B74: Insurance for Active Employees | C74: BENE
A75: 5250 | B75: Insurance for Retired School Employees | C75: BENE
A76: 5260 | B76: Other Non-Employee Insurance | C76: BENE
A77: 5300 | B77: Rental Lease of Equipment | C77: BENE
A78: 5350 | B78: Rental Lease of Buildings | C78: BENE
A79: 5400 | B79: Short Term Interest RANs | C79: BENE
A80: 5450 | B80: Short Term Interest BANs | C80: DEBT
A81: 5500 | B81: Other Fixed Charges | C81: BENE
A82: 5550 | B82: School Crossing Guards | C82: BENE
A83: 5990 | B83: Indirect Cost Transfers | C83: INDR
A84: 6000 | B84: Community Services
A85: 6200 | B85: Civic Activities | C85: COMM
A86: 6300 | B86: Recreation Services | C86: COMM
A87: 6800 | B87: Health Services to Non-Public Schools | C87: COMM
A88: 6900 | B88: Transportation to Non-Public Schools | C88: COMM
A89: 6910 | B89: Non-public transportation in-district | C89: COMM
A90: 6920 | B90: Non-public transportation out-of-district | C90: COMM
A91: 7000 | B91: Fixed Assets
A92: 7100 | B92: Purchase of Land and Buildings (7100, 7200) | C92: CAPT
A93: 7200 | B93: Purchase of Land and Buildings (7100, 7200) | C93: CAPT
A94: 7300 | B94: Equipment (7300, 7400) | C94: CAPT
A95: 7350 | B95: Capital Technology | C95: CAPT
A96: 7400 | B96: Equipment (7300, 7400) | C96: CAPT
A97: 7500 | B97: Motor Vehicles (7500, 7600) | C97: CAPT
A98: 7600 | B98: Motor Vehicles (7500, 7600) | C98: CAPT
A99: 8000 | B99: Long Term Debt
A100: 8100 | B100: Debt Retirement/School Construction | C100: DEBT
A101: 8200 | B101: Debt Service/School Construction | C101: DEBT
A102: 8400 | B102: Debt Service/Educ and Other (8400, 8600) | C102: DEBT
A103: 8600 | B103: Debt Service/Educ and Other (8400, 8600) | C103: DEBT
A104: 9000 | B104: Payments to Other Districts
A105: 9100 | B105: Tuition to Mass. Schools | C105: TUIT
A106: 9110 | B106: Tuition for School Choice | C106: TUIT
A107: 9120 | B107: Tuition to Commonwealth Charter Schools | C107: TUIT
A108: 9125 | B108: Tuition to Horace Mann Charter Schools | C108: TUIT
A109: 9200 | B109: Tuition to Out-of-State Schools | C109: TUIT
A110: 9300 | B110: Tuition to Non-Public Schools | C110: TUIT
A111: 9400 | B111: Tuition to Collaboratives | C111: TUIT
A112: 9500 | B112: Regional School Assessment | C112: REGL
A113: 9600 | B113: Out-of-district Transportation | C113: ODTR
A114: 9810 | B114: NSS Required Net School Spending (EOY)
A115: 9820 | B115: NSS Carryover (EOY)
A116: ADMN | B116: Administration
A117: BENE | B117: Insurance, Retirement Programs and Other
A118: CAPT | B118: Fixed Assets (Buildings, Equipment)
A119: COMM | B119: Community Activities
A120: DEBT | B120: Debt and BANs
A121: GUID | B121: Guidance, Counseling and Testing
A122: IIII | B122: In-district Expenditure
A123: INDR | B123: Indirect Cost Transfers
A124: LDRS | B124: Instructional Leadership
A125: MATL | B125: Instructional Materials, Equipment and Technology
A126: ODTR | B126: Out-of-district Transportation
A127: OODD | B127: Out-of-district Expenditure
A128: OPMN | B128: Operations and Maintenance
A129: OTHR | B129: Total Other Costs
A130: PDEV | B130: Professional Development
A131: REGL | B131: Regional Assessments
A132: SERV | B132: Pupil Services
A133: SPGR | B133: SPED From Grants, Revolving
A134: TCHR | B134: Teachers
A135: TSER | B135: Other Teaching Services
A136: TTPP | B136: Expenditure (Admin, Instruction, Operations)
A137: TTTT | B137: Grand Total Expenditures
A138: TUIT | B138: Payments to Out-of-District Schools
